bitfinex-derivatives/quotes_BTCF0:USTF0_20210109
["timestamp","ask_amount","ask_price","bid_price","bid_amount"]
[1610210092614,0.03,40345.0,40337.0,0.00899997]
[1610210092815,0.03,40345.0,40326.0,0.0260233]
[1610210093015,0.03,40345.0,40338.0,0.00899988]
[1610210093315,0.03,40345.0,40326.0,0.03502356]
[1610210093517,0.03,40345.0,40339.0,0.00900013]
[1610210093918,0.13632608,40340.0,40328.0,0.13632608]
[1610210094321,0.13632608,40340.0,40329.0,0.00899989]
[1610210095920,0.13632608,40340.0,40336.0,0.13632608]
[1610210096420,0.13632608,40340.0,40337.0,0.00899993]
[1610210097723,0.13632608,40340.0,40338.0,0.0087876]
[1610210097922,0.13632608,40340.0,40338.0,0.00899958]
[1610210098121,0.13632608,40340.0,40330.0,0.13632608]
[1610210098322,0.13632608,40340.0,40339.0,0.0089996]
[1610210098522,0.13632608,40340.0,40339.0,0.00021198]
[1610210098722,0.13632608,40340.0,40335.0,4.1493]
[1610210098923,0.13632608,40340.0,40339.0,0.00021198]
[1610210099122,0.13632608,40340.0,40336.0,0.03502208]
[1610210099523,0.13632608,40340.0,40339.0,0.00021198]
[1610210099725,0.13632608,40340.0,40337.0,0.00021198]
[1610210099922,0.13632608,40340.0,40339.0,0.00021198]
[1610210100125,0.13632608,40340.0,40338.0,0.00021198]
[1610210100425,0.13632608,40340.0,40336.0,0.03502208]
[1610210100824,0.13632608,40340.0,40339.0,0.00021198]
[1610210101025,0.13632608,40340.0,40337.0,0.00021198]
[1610210101224,0.13632608,40340.0,40339.0,0.00021198]
[1610210101624,0.13632608,40340.0,40338.0,0.00021198]
[1610210101824,0.13632608,40340.0,40339.0,0.00021198]
[1610210102226,0.13632608,40340.0,40336.0,0.03502208]
[1610210104025,0.13632608,40340.0,40336.0,0.17134816]
[1610210104426,0.13632608,40340.0,40337.0,0.00899974]
[1610210104928,0.13632608,40340.0,40336.0,0.03502231]
[1610210105227,0.13632608,40340.0,40338.0,0.00899966]
[1610210105426,0.13632608,40340.0,40337.0,0.00899966]
[1610210105827,0.13632608,40340.0,40336.0,0.03502229]
[1610210106029,0.13632608,40340.0,40338.0,0.00899982]
[1610210106426,0.13632608,40340.0,40337.0,0.00899987]
[1610210106631,0.13632608,40340.0,40339.0,0.00899985]
[1610210106828,0.13632608,40340.0,40338.0,0.00899985]
[1610210107031,0.13632608,40340.0,40339.0,0.00899988]
[1610210107630,0.13632608,40340.0,40336.0,0.03502231]
[1610210107832,0.13632608,40340.0,40339.0,0.00899984]
[1610210108131,0.13632608,40340.0,40337.0,0.00899984]
[1610210108331,0.13632608,40340.0,40339.0,0.00899984]
[1610210108732,0.13632608,40340.0,40336.0,0.03502236]
[1610210108933,0.13632608,40340.0,40339.0,0.00899989]
[1610210109136,0.13632608,40340.0,40337.0,0.00899946]
[1610210109532,0.13632608,40340.0,40339.0,0.00899943]
[1610210109732,0.13632608,40340.0,40338.0,0.00899929]
[1610210109935,0.13632608,40340.0,40339.0,0.00899922]
[1610210110534,0.13632608,40340.0,40336.0,0.03502175]
[1610210110734,0.13632608,40340.0,40339.0,0.00899934]
[1610210110934,0.13632608,40340.0,40339.0,0.00021198]
[1610210111134,0.13632608,40340.0,40337.0,0.00899934]
[1610210111333,0.13632608,40340.0,40339.0,0.00021198]
[1610210111533,0.13632608,40340.0,40338.0,0.00899928]
[1610210111734,0.13632608,40340.0,40339.0,0.00021198]
[1610210112034,0.13632608,40340.0,40338.0,0.13632608]
[1610210112437,0.13632608,40340.0,40339.0,0.00021198]
[1610210112636,0.13632608,40340.0,40339.0,0.00899868]
[1610210112837,0.03,40345.0,40339.0,0.00899868]
[1610210114137,0.03,40345.0,40344.0,0.13632608]
[1610210114740,0.03,40345.0,40344.0,0.14532431]
[1610210116038,0.16632608,40345.0,40344.0,0.14532431]
[1610210116640,0.16632608,40345.0,40344.0,0.55282431]
[1610210117041,0.16632608,40345.0,40344.0,0.57884305]
[1610210117241,0.03,40345.0,40344.0,0.57884305]
[1610210125354,0.03,40345.0,40344.0,0.17134305]
[1610210125755,0.03,40345.0,40344.0,0.00899823]
[1610210126155,4.04542608,40345.0,40344.0,0.00899823]
[1610210126357,4.04542608,40345.0,40343.0,0.00899784]
[1610210126555,5.54542608,40345.0,40344.0,0.00899638]
[1610210127157,5.54542608,40345.0,40337.0,0.00870188]
[1610210127356,5.54542608,40345.0,40344.0,0.00870203]
[1610210127758,5.54542608,40345.0,40338.0,0.0087029]
[1610210127956,5.54542608,40345.0,40322.0,0.02559292]
[1610210127957,5.54542608,40345.0,40344.0,0.00021113]
[1610210128158,5.54542608,40345.0,40339.0,0.00021113]
[1610210128358,5.54542608,40345.0,40344.0,0.00021115]
[1610210128758,5.54542608,40345.0,40322.0,0.00870338]
[1610210128958,5.54542608,40345.0,40344.0,0.00021115]
[1610210129158,5.54542608,40345.0,40323.0,0.00021115]
[1610210129558,1.66632608,40345.0,40322.0,0.00870338]
[1610210129759,2.8508,40331.0,40324.0,0.00021129]
[1610210129960,1.5,40330.0,40323.0,0.00021129]
[1610210130159,0.13632608,40324.0,40323.0,0.00021129]
[1610210130362,0.13632608,40324.0,40323.0,0.00851842]
[1610210130558,0.13632608,40324.0,40310.0,0.00872997]
[1610210130760,0.13632608,40324.0,40323.0,0.00021123]
[1610210131158,0.13632608,40324.0,40311.0,0.00872997]
[1610210131359,0.13632608,40324.0,40323.0,0.00021125]
[1610210131559,1.63632608,40324.0,40312.0,0.00021125]
[1610210131760,5.16772608,40324.0,40312.0,0.00021125]
[1610210131960,5.16772608,40324.0,40323.0,0.00021125]
[1610210132159,5.16772608,40324.0,40313.0,0.00021125]
[1610210132359,5.16772608,40324.0,40323.0,0.00021127]
[1610210132560,5.16772608,40324.0,40314.0,0.00021127]
[1610210132962,5.16772608,40324.0,40298.0,0.00873288]
[1610210133161,5.16772608,40324.0,40315.0,0.00021127]
[1610210133360,5.16772608,40324.0,40299.0,0.00021127]
[1610210133561,5.16772608,40324.0,40299.0,0.00873304]
[1610210133762,5.16772608,40324.0,40292.0,0.00873301]
[1610210133961,5.16772608,40324.0,40300.0,0.0087331]
[1610210134162,0.13632608,40301.0,40300.0,0.0087331]
[1610210134362,0.23712608,40301.0,40293.0,0.00873332]
[1610210134562,0.23712608,40301.0,40300.0,0.00021129]
[1610210134761,0.23712608,40301.0,40294.0,0.00873409]
[1610210135162,0.23712608,40301.0,40300.0,0.00021129]
[1610210135363,0.23712608,40301.0,40295.0,0.00852297]
[1610210135563,0.23712608,40301.0,40300.0,0.00021131]
[1610210135863,0.23712608,40301.0,40296.0,0.00021131]
[1610210136063,0.23712608,40301.0,40300.0,0.00021131]
[1610210136465,0.23712608,40301.0,40297.0,0.00021131]
[1610210136665,0.23712608,40301.0,40300.0,0.00021133]
[1610210136866,0.23712608,40301.0,40298.0,0.00021133]
[1610210137270,0.23712608,40301.0,40300.0,0.00021133]
[1610210137467,0.23712608,40301.0,40276.0,5.69550921]
[1610210137468,0.23712608,40301.0,40299.0,0.00021133]
[1610210137668,0.23712608,40301.0,40300.0,0.00021133]
[1610210138268,0.23712608,40301.0,40291.0,0.00021133]
[1610210138468,0.23712608,40301.0,40300.0,0.00021133]
[1610210138667,0.23712608,40301.0,40292.0,0.00021133]
[1610210139068,0.23712608,40301.0,40282.0,0.00873503]
[1610210139269,0.23712608,40301.0,40293.0,0.00021133]
[1610210139468,0.23712608,40301.0,40283.0,0.00021131]
[1610210139769,0.23712608,40301.0,40282.0,0.00021131]
[1610210140069,0.1008,40301.0,40290.0,0.13632608]
[1610210140270,0.3,40329.0,40290.0,0.13632608]
[1610210140468,4.1176,40324.0,40290.0,0.13632608]
[1610210140671,4.1176,40324.0,40291.0,0.00021131]
[1610210141172,1.5,40323.0,40291.0,0.00021131]
[1610210141371,1.5,40323.0,40290.0,0.13632608]
[1610210141674,1.5,40323.0,40278.0,2.52988942]
[1610210141972,3.2568,40307.0,40278.0,2.52988942]
[1610210142175,3.2568,40307.0,40267.0,3.5695]
[1610210142176,0.13632608,40279.0,40277.0,2.53016064]
[1610210142573,0.11124,40288.0,40275.0,2.66700244]
[1610210142773,0.11124,40288.0,40278.0,0.00021156]
[1610210142972,0.11124,40288.0,40276.0,0.00021156]
[1610210143177,0.11124,40288.0,40279.0,0.00021156]
[1610210143474,0.11124,40288.0,40277.0,0.00021156]
[1610210143672,0.11124,40288.0,40275.0,0.13632608]
[1610210144075,0.13632608,40276.0,40275.0,0.13632608]
[1610210145677,0.11124,40288.0,40275.0,0.13632608]
[1610210146075,0.13632608,40283.0,40282.0,0.13632608]
[1610210147577,0.11124,40288.0,40282.0,0.13632608]
[1610210147776,3.2113,40300.0,40282.0,0.13632608]
[1610210148078,0.13632608,40299.0,40298.0,0.13632608]
[1610210152279,0.08973,40307.0,40298.0,0.13632608]
[1610210152480,3.0336,40309.0,40298.0,0.13632608]
[1610210152681,3.0336,40309.0,40284.0,3.7254]
[1610210152880,3.12651,40309.0,40284.0,3.7254]
[1610210153281,0.09291,40309.0,40275.0,2.51453643]
[1610210153483,3.5832,40301.0,40272.0,2.61179593]
[1610210153881,3.5832,40301.0,40273.0,0.00021131]
[1610210154080,3.5832,40301.0,40280.0,0.13632608]
[1610210154482,3.5832,40301.0,40268.0,2.52053933]
[1610210154685,3.5832,40301.0,40267.0,3.3288]
[1610210154883,3.5832,40301.0,40269.0,0.00021133]
[1610210155283,3.5832,40301.0,40268.0,0.00021133]
[1610210155483,3.5832,40301.0,40270.0,0.00021133]
[1610210155684,3.5832,40301.0,40269.0,0.00021133]
[1610210155984,3.5832,40301.0,40271.0,0.00021133]
[1610210156183,3.5832,40301.0,40273.0,0.13632608]
[1610210158183,3.5832,40301.0,40279.0,0.13632608]
[1610210160185,0.13632608,40281.0,40279.0,0.13632608]
[1610210160388,0.25392608,40281.0,40279.0,0.13632608]
[1610210161586,0.25392608,40281.0,40280.0,0.00021134]
[1610210163789,0.25392608,40281.0,40280.0,3.99941134]
[1610210163991,0.1176,40281.0,40280.0,3.99941134]
[1610210165190,0.13632608,40291.0,40280.0,3.99941134]
[1610210165592,0.03,40301.0,40280.0,3.99941134]
[1610210165792,0.03,40301.0,40281.0,0.00021132]
[1610210166193,0.03,40301.0,40300.0,0.13632608]
[1610210166794,0.03,40301.0,40280.0,3.9992]
[1610210167194,0.439,40300.0,40280.0,3.9992]
[1610210167393,0.51866,40300.0,40281.0,0.00021133]
[1610210168194,0.51866,40300.0,40293.0,0.13632608]
[1610210169597,0.07966,40300.0,40264.0,2.48137754]
[1610210169797,3.517,40294.0,40273.0,2.9077]
[1610210170198,3.517,40294.0,40285.0,0.13632608]
[1610210170798,3.517,40294.0,40286.0,0.00021135]
[1610210172199,0.13632608,40287.0,40286.0,0.00021135]
[1610210172600,0.22841608,40287.0,40286.0,0.00021135]
[1610210173202,0.22841608,40287.0,40274.0,0.00021135]
[1610210173402,0.22841608,40287.0,40286.0,0.00021135]
[1610210173601,0.22841608,40287.0,40275.0,0.00021135]
[1610210173902,0.22841608,40287.0,40273.0,2.9077]
[1610210173903,0.22841608,40287.0,40286.0,0.00021135]
[1610210174102,0.22841608,40287.0,40276.0,0.00021135]
[1610210174303,0.09209,40287.0,40281.0,0.13632608]
[1610210174702,0.09209,40287.0,40282.0,0.00021135]
[1610210176204,0.13632608,40283.0,40275.0,0.13632608]
[1610210176604,0.13632608,40283.0,40276.0,0.00873787]
[1610210178207,0.13632608,40283.0,40282.0,0.13632608]
[1610210178405,0.09209,40287.0,40282.0,0.13632608]
[1610210178606,3.517,40294.0,40282.0,0.14485222]
[1610210178808,3.517,40294.0,40282.0,0.14506357]
[1610210179010,0.07966,40300.0,40283.0,0.00852614]
[1610210179205,0.07966,40300.0,40283.0,0.0087375]
[1610210179407,0.03,40301.0,40283.0,0.0087375]
[1610210180209,0.13632608,40294.0,40293.0,0.13632608]
[1610210180409,0.25620608,40294.0,40293.0,0.13632608]
[1610210180709,0.25620608,40294.0,40293.0,0.14506247]
[1610210180910,0.11988,40294.0,40293.0,0.14506247]
[1610210184412,0.25620608,40294.0,40293.0,0.00873639]
[1610210185014,0.25620608,40294.0,40280.0,0.02564767]
[1610210185015,0.25620608,40294.0,40280.0,0.03438449]
[1610210185212,0.25620608,40294.0,40293.0,0.00873703]
[1610210185613,0.25620608,40294.0,40281.0,0.00873703]
[1610210185813,0.25620608,40294.0,40293.0,0.00873703]
[1610210186013,0.25620608,40294.0,40282.0,0.0087371]
[1610210186414,0.11988,40294.0,40293.0,0.00873715]
[1610210186612,0.11988,40294.0,40290.0,0.13632608]
[1610210186814,0.19501,40294.0,40293.0,0.00873711]
[1610210187013,0.19501,40294.0,40291.0,0.00873728]
[1610210187214,0.11991,40294.0,40291.0,0.00873728]
[1610210187815,0.11991,40294.0,40280.0,0.03438525]
[1610210188215,3.3894,40288.0,40280.0,0.03438525]
[1610210188414,3.3894,40288.0,40282.0,0.13632608]
[1610210188915,3.3894,40288.0,40283.0,0.00777704]
[1610210189516,0.0741,40287.0,40283.0,0.00777704]
[1610210190117,3.3894,40288.0,40283.0,0.00777704]
[1610210190317,3.3894,40288.0,40274.0,0.03183486]
[1610210190517,3.3894,40288.0,40284.0,0.00777732]
[1610210190716,3.3894,40288.0,40276.0,0.13632608]
[1610210191120,3.3894,40288.0,40277.0,0.00777738]
[1610210191519,0.11991,40294.0,40277.0,0.00777738]
[1610210191918,0.03,40301.0,40277.0,0.00777738]
[1610210192520,0.13632608,40278.0,40277.0,0.00777738]
[1610210193118,0.23544608,40278.0,40277.0,0.00777738]
[1610210199625,4.06944608,40278.0,40277.0,0.00777738]
[1610210200528,0.23544608,40278.0,40277.0,0.00777738]
[1610210200729,0.23544608,40278.0,40277.0,3.07477738]
[1610210201132,0.23544608,40278.0,40277.0,3.09885307]
[1610210201534,0.23544608,40278.0,40277.0,0.03185307]
[1610210202133,0.23544608,40278.0,40277.0,0.00777738]
[1610210202736,3.61804608,40278.0,40275.0,0.03185374]
[1610210202934,3.61804608,40278.0,40277.0,0.00777845]
[1610210203134,3.61804608,40278.0,40276.0,0.00777843]
[1610210203535,3.61804608,40278.0,40277.0,0.00777864]
[1610210203935,3.61804608,40278.0,40266.0,0.03186102]
[1610210204135,3.61804608,40278.0,40277.0,0.00777917]
[1610210204336,0.23544608,40278.0,40277.0,0.00777917]
[1610210204534,0.23544608,40278.0,40265.0,0.0318615]
[1610210204735,0.23544608,40278.0,40277.0,0.00777905]
[1610210204934,0.23544608,40278.0,40267.0,4.1455]
[1610210205135,0.23544608,40278.0,40266.0,0.00777905]
[1610210205337,3.4537,40274.0,40268.0,0.00777901]
[1610210205535,3.4537,40274.0,40267.0,0.00777899]
[1610210205735,3.4537,40274.0,40269.0,0.00777895]
[1610210206037,3.4537,40274.0,40260.0,0.03186153]
[1610210206238,3.4537,40274.0,40270.0,0.00777925]
[1610210206639,0.13632608,40271.0,40258.0,0.03186245]
[1610210206839,0.13632608,40271.0,40258.0,0.02408312]
[1610210207040,0.13632608,40271.0,40259.0,0.00020827]
[1610210207240,0.13632608,40271.0,40259.0,0.00777931]
[1610210207439,0.13632608,40271.0,40258.0,0.03186228]
[1610210207640,0.13632608,40271.0,40260.0,0.00777916]
[1610210207841,0.13632608,40271.0,40260.0,0.00020827]
[1610210208040,0.13632608,40271.0,40259.0,0.0077793]
[1610210208240,0.13632608,40271.0,40261.0,0.00020827]
[1610210208440,0.13632608,40271.0,40260.0,0.00777932]
[1610210208640,0.13632608,40262.0,40259.0,0.00757108]
[1610210208940,0.23379608,40262.0,40258.0,0.03186247]
[1610210209342,0.23379608,40262.0,40260.0,0.00777935]
[1610210209540,0.23379608,40262.0,40258.0,0.02408312]
[1610210209541,0.23379608,40262.0,40259.0,0.00777929]
[1610210209742,0.23379608,40262.0,40261.0,0.00777929]
[1610210209942,0.23379608,40262.0,40260.0,0.00777927]
[1610210210344,0.23379608,40262.0,40258.0,0.03186213]
[1610210210543,0.23379608,40262.0,40261.0,0.00777921]
[1610210210743,0.23379608,40262.0,40259.0,0.00777921]
[1610210211144,0.23379608,40262.0,40258.0,0.03186207]
[1610210211344,0.23379608,40262.0,40260.0,0.00777933]
[1610210211544,0.23379608,40262.0,40255.0,2.55644439]
[1610210211944,0.23379608,40262.0,40261.0,0.00020857]
[1610210212144,0.23379608,40262.0,40256.0,2.55664904]
[1610210212344,0.23379608,40262.0,40255.0,2.55644944]
[1610210212543,0.09747,40262.0,40257.0,0.13632608]
[1610210212947,0.09747,40262.0,40256.0,2.55627828]
[1610210213345,0.09747,40262.0,40255.0,2.55603932]
[1610210213646,0.09747,40262.0,40256.0,0.00020856]
[1610210214247,3.2308,40263.0,40256.0,0.00020856]
[1610210214647,0.13632608,40257.0,40255.0,0.00020858]
[1610210214851,0.13632608,40257.0,40253.0,2.55561534]
[1610210215255,0.13632608,40257.0,40254.0,0.00020858]
[1610210216753,0.13632608,40257.0,40253.0,0.00020858]
[1610210216951,0.13632608,40257.0,40252.0,2.55502194]
[1610210217152,0.13632608,40257.0,40254.0,0.00020858]
[1610210217554,0.13632608,40257.0,40253.0,0.00020858]
[1610210217753,0.13632608,40257.0,40251.0,2.55451325]
[1610210217955,0.13632608,40257.0,40254.0,0.00020858]
[1610210218255,0.13632608,40257.0,40252.0,0.00020858]
[1610210218458,0.13632608,40257.0,40249.0,2.55339031]
[1610210218656,0.13632608,40250.0,40249.0,2.55339031]
[1610210218856,0.13632608,40250.0,40247.0,0.13632608]
[1610210219056,0.10144,40260.0,40247.0,0.13632608]
[1610210219559,0.10144,40260.0,40250.0,2.55283476]
[1610210220158,3.2308,40263.0,40250.0,2.55283476]
[1610210220359,3.2308,40263.0,40249.0,2.55286599]
[1610210220759,0.13632608,40253.0,40252.0,0.13632608]
[1610210221361,3.31411,40263.0,40252.0,0.13632608]
[1610210221563,0.08331,40263.0,40252.0,0.13632608]
[1610210222462,0.08331,40263.0,40262.0,3.11]
[1610210222663,0.08331,40263.0,40262.0,3.24632608]
[1610210223663,0.09912,40278.0,40262.0,3.24632608]
[1610210223862,0.2708,40307.0,40262.0,3.24632608]
[1610210224263,0.2887,40312.0,40262.0,3.24632608]
[1610210224661,0.13632608,40304.0,40287.0,0.13632608]
[1610210225063,0.13632608,40304.0,40287.0,3.45962608]
[1610210228771,0.13632608,40295.0,40287.0,3.45962608]
[1610210229170,0.2887,40312.0,40287.0,3.45962608]
[1610210229872,0.1556,40311.0,40287.0,0.13632608]
[1610210230071,0.1104,40288.0,40287.0,0.13632608]
[1610210230676,0.24672608,40288.0,40287.0,0.13632608]
[1610210231472,0.24672608,40288.0,40275.0,3.6686]
[1610210231775,0.24672608,40288.0,40276.0,0.00020848]
[1610210232575,0.1104,40288.0,40286.0,3.6176]
[1610210232774,0.24672608,40288.0,40287.0,0.13632608]
[1610210233374,0.1104,40288.0,40287.0,0.13632608]
[1610210234775,0.1104,40288.0,40287.0,0.13653452]
[1610210235777,0.1104,40288.0,40287.0,3.79193452]
[1610210235976,0.34373722,40288.0,40287.0,3.79193452]
[1610210237678,0.41813722,40288.0,40287.0,3.79193452]
[1610210237877,0.34373722,40288.0,40287.0,3.79193452]
[1610210240180,0.10947,40297.0,40287.0,3.79193452]
[1610210240382,0.10947,40297.0,40287.0,0.13653452]
[1610210240581,0.10947,40297.0,40288.0,0.00020833]
[1610210240783,0.10947,40297.0,40296.0,0.13632608]
[1610210242883,0.10947,40297.0,40296.0,0.13653441]
[1610210243285,0.10947,40297.0,40296.0,0.65463441]
[1610210243484,0.10947,40297.0,40296.0,0.65442608]
[1610210243683,0.10947,40297.0,40296.0,0.65463441]
[1610210243884,2.9514,40317.0,40296.0,0.65463441]
[1610210244084,0.13632608,40324.0,40296.0,0.13653441]
[1610210244285,0.13632608,40324.0,40300.0,3.576]
[1610210244787,0.13632608,40324.0,40313.0,0.13632608]
[1610210245587,0.13632608,40324.0,40300.0,3.576]
[1610210246689,0.13632608,40314.0,40309.0,0.13632608]
[1610210247089,0.22386608,40314.0,40309.0,0.13632608]
[1610210252193,0.22386608,40314.0,40293.0,3.954]
[1610210252393,0.22386608,40314.0,40280.0,2.51461847]
[1610210252592,0.22386608,40314.0,40279.0,2.9343]
[1610210252593,3.8829,40307.0,40279.0,2.9343]
[1610210252792,0.13632608,40281.0,40279.0,2.9343]
[1610210252994,0.13632608,40281.0,40280.0,0.00020723]
[1610210253594,0.13632608,40281.0,40276.0,0.00020723]
[1610210253792,0.13632608,40281.0,40280.0,0.00020723]
[1610210254193,0.13632608,40281.0,40275.0,0.13632608]
[1610210254194,0.13632608,40281.0,40277.0,0.00020714]
[1610210254393,0.13632608,40281.0,40280.0,0.00020702]
[1610210254594,0.13632608,40281.0,40278.0,0.00020704]
[1610210254993,0.13632608,40281.0,40280.0,0.00020704]
[1610210255194,0.13632608,40281.0,40279.0,0.00020704]
[1610210255394,0.13632608,40281.0,40280.0,0.00020704]
[1610210255996,0.13632608,40281.0,40264.0,0.03128551]
[1610210256198,0.13632608,40281.0,40280.0,0.00020706]
[1610210256397,0.13632608,40281.0,40265.0,0.00020706]
[1610210256799,0.07871,40287.0,40271.0,0.13632608]
[1610210257200,0.07871,40287.0,40272.0,0.00777735]
[1610210257703,0.07871,40287.0,40273.0,0.00757017]
[1610210257905,0.07871,40287.0,40273.0,0.00777724]
[1610210258104,5.2649,40291.0,40272.0,0.0077774]
[1610210258303,1.0,40288.0,40274.0,0.0077777]
[1610210258504,1.12,40288.0,40274.0,0.00757063]
[1610210258706,1.12,40288.0,40273.0,0.00020707]
[1610210258707,0.13632608,40275.0,40273.0,0.00777763]
[1610210258904,0.22482608,40275.0,40262.0,0.13632608]
[1610210259104,0.22482608,40275.0,40274.0,0.0002071]
[1610210259305,0.22482608,40275.0,40263.0,0.0002071]
[1610210259505,0.22482608,40275.0,40263.0,0.00777839]
[1610210260104,0.22482608,40275.0,40250.0,0.03129944]
[1610210260707,0.0885,40275.0,40254.0,0.13632608]
[1610210261208,0.0885,40275.0,40255.0,0.00777937]
[1610210262709,0.0885,40275.0,40268.0,0.13632608]
[1610210263109,0.0885,40275.0,40269.0,0.00777928]
[1610210263910,0.03,40284.0,40270.0,0.00020712]
[1610210264512,0.03,40284.0,40270.0,0.00777896]
[1610210264712,0.13632608,40271.0,40266.0,0.13632608]
[1610210265112,0.22836608,40271.0,40267.0,0.00777887]
[1610210266316,0.22836608,40271.0,40262.0,0.00777925]
[1610210266513,0.22836608,40271.0,40268.0,0.00777946]
[1610210266713,3.35726608,40271.0,40263.0,0.00777963]
[1610210267113,3.35726608,40271.0,40256.0,0.00777969]
[1610210267312,3.35726608,40271.0,40264.0,0.00777972]
[1610210267514,3.35726608,40271.0,40257.0,0.00777987]
[1610210267914,3.35726608,40271.0,40265.0,0.00020714]
[1610210268115,3.35726608,40271.0,40258.0,0.0077798]
[1610210268316,3.35726608,40271.0,40266.0,0.00020714]
[1610210268717,3.35726608,40271.0,40259.0,0.0077797]
[1610210268918,0.22836608,40271.0,40267.0,0.00020714]
[1610210269116,0.22836608,40271.0,40260.0,0.00777974]
[1610210269516,0.22836608,40271.0,40268.0,0.00020714]
[1610210269716,0.22836608,40271.0,40255.0,3.7552]
[1610210269717,0.22836608,40271.0,40261.0,0.00777981]
[1610210269915,0.22836608,40271.0,40256.0,0.00757258]
[1610210270318,0.22836608,40271.0,40262.0,0.00777972]
[1610210270517,0.22836608,40271.0,40257.0,0.00777969]
[1610210270718,0.09204,40271.0,40263.0,0.00777966]
[1610210270916,3.3049,40284.0,40263.0,0.00757252]
[1610210271118,0.03,40284.0,40258.0,0.00777966]
[1610210271320,0.03,40284.0,40264.0,0.0077796]
[1610210271521,0.03,40284.0,40259.0,0.0077796]
[1610210271718,0.4073,40282.0,40265.0,0.00757233]
[1610210271918,0.4073,40282.0,40265.0,0.00777947]
[1610210272120,0.4073,40282.0,40257.0,0.00777952]
[1610210272318,0.4073,40282.0,40266.0,0.00777949]
[1610210272518,1.9073,40282.0,40258.0,0.00777949]
[1610210272720,0.13632608,40259.0,40258.0,0.00777949]
[1610210272919,0.22539608,40259.0,40257.0,0.00777949]
[1610210273118,0.22539608,40259.0,40258.0,0.00777949]
[1610210273721,0.22539608,40259.0,40253.0,0.00777952]
[1610210273921,0.22539608,40259.0,40258.0,0.00777956]
[1610210274123,0.22539608,40259.0,40254.0,0.00777953]
[1610210274522,0.22539608,40259.0,40258.0,0.00777982]
[1610210274722,0.22539608,40259.0,40255.0,0.00777975]
[1610210274922,0.22539608,40259.0,40258.0,0.00777967]
[1610210275223,0.22539608,40259.0,40257.0,0.13632608]
[1610210275423,0.22539608,40259.0,40258.0,0.00777956]
[1610210276727,0.08907,40259.0,40258.0,0.00777956]
[1610210277126,0.08907,40259.0,40258.0,3.09147956]
[1610210277524,0.08907,40259.0,40258.0,3.11499958]
[1610210278126,0.13632608,40266.0,40258.0,3.11499958]
[1610210278727,0.13632608,40266.0,40259.0,0.03129694]
[1610210278928,0.13632608,40266.0,40263.0,0.13632608]
[1610210279527,0.13632608,40266.0,40264.0,0.00777886]
[1610210279928,0.13632608,40266.0,40253.0,0.03129845]
[1610210280127,0.20968608,40266.0,40253.0,0.03129845]
[1610210280327,0.20968608,40266.0,40265.0,0.00777903]
[1610210280529,0.20968608,40266.0,40254.0,0.00777889]
[1610210280728,0.20968608,40266.0,40265.0,0.00777885]
[1610210280929,0.07336,40266.0,40265.0,0.00777885]
[1610210281128,0.07336,40266.0,40262.0,0.13632608]
[1610210281330,0.07336,40266.0,40265.0,0.00777894]
[1610210281529,0.07336,40266.0,40263.0,0.00777886]
[1610210281732,0.07336,40266.0,40263.0,3.16137886]
[1610210281933,0.07336,40266.0,40265.0,0.00777877]
[1610210282131,0.07336,40266.0,40263.0,3.1536]
[1610210282132,0.07336,40266.0,40264.0,0.0312973]
[1610210282331,0.07336,40266.0,40265.0,0.00777843]
[1610210282932,0.07336,40266.0,40264.0,0.03129689]
[1610210283133,0.07336,40266.0,40265.0,0.00777806]
[1610210283332,0.14846,40266.0,40265.0,0.00777806]
[1610210283733,0.07336,40266.0,40264.0,0.03129677]
[1610210283932,0.13632608,40272.0,40265.0,0.00777807]
[1610210284535,0.13632608,40272.0,40264.0,0.07597556]
[1610210284733,0.075,40271.0,40266.0,0.00777769]
[1610210284933,0.075,40271.0,40264.0,0.06819779]
[1610210284934,0.13632608,40272.0,40265.0,0.00777771]
[1610210285134,0.13632608,40272.0,40271.0,4.0927]
[1610210285534,0.13632608,40272.0,40271.0,4.12399342]
[1610210285933,0.21172608,40272.0,40271.0,4.12399342]
[1610210286135,0.13632608,40272.0,40271.0,4.12399342]
[1610210286934,0.13632608,40272.0,40271.0,4.2603195]
[1610210289235,0.21042608,40272.0,40271.0,4.2603195]
[1610210289635,0.34855223,40272.0,40271.0,4.2603195]
[1610210289838,0.27445223,40272.0,40271.0,4.2603195]
[1610210290436,0.13812615,40272.0,40271.0,4.2603195]
[1610210290736,0.21342615,40272.0,40271.0,4.2603195]
[1610210290937,0.13812615,40272.0,40271.0,4.2603195]
[1610210292037,0.21242615,40272.0,40271.0,4.2603195]
[1610210292236,0.21242615,40272.0,40271.0,0.1676195]
[1610210292637,0.13812615,40272.0,40271.0,0.00777794]
[1610210292838,0.27445223,40272.0,40271.0,0.00777794]
[1610210293239,0.27445223,40272.0,40269.0,0.03129387]
[1610210293441,0.27445223,40272.0,40271.0,0.00777834]
[1610210293639,0.27445223,40272.0,40270.0,0.0077785]
[1610210294040,0.27445223,40272.0,40269.0,0.00777854]
[1610210294239,0.27445223,40272.0,40271.0,0.0077785]
[1610210294440,0.27445223,40272.0,40270.0,0.0077785]
[1610210294841,0.34945223,40272.0,40269.0,0.03129579]
[1610210295044,0.34945223,40272.0,40271.0,0.00777839]
[1610210295241,0.34945223,40272.0,40271.0,0.00757128]
[1610210295441,0.34945223,40272.0,40270.0,0.00777835]
[1610210295641,0.34945223,40272.0,40271.0,0.00777824]
[1610210295841,0.27445223,40272.0,40271.0,0.00777824]
[1610210296040,0.27445223,40272.0,40269.0,0.03129564]
[1610210296441,0.27445223,40272.0,40271.0,3.32677824]
[1610210296645,0.13812615,40272.0,40271.0,3.319]
[1610210296843,0.21322615,40272.0,40271.0,3.3502955]
[1610210297043,0.13812615,40272.0,40271.0,3.3502955]
[1610210299045,0.12812615,40272.0,40271.0,3.3502955]
[1610210299248,0.20172615,40272.0,40271.0,3.3502955]
[1610210300049,0.12812615,40272.0,40271.0,3.3502955]
[1610210300848,0.12812615,40272.0,40271.0,3.3526955]
[1610210301047,0.20222615,40272.0,40271.0,3.3526955]
[1610210301849,0.12812615,40272.0,40271.0,3.3526955]
[1610210302849,0.20202615,40272.0,40271.0,3.3526955]
[1610210303449,0.12812615,40272.0,40271.0,3.3526955]
[1610210304348,0.20342615,40272.0,40271.0,3.3526955]
[1610210305150,0.12812615,40272.0,40271.0,3.3526955]
[1610210306249,0.20332615,40272.0,40271.0,3.3526955]
[1610210306448,0.12812615,40272.0,40271.0,3.3526955]
[1610210307751,0.20252615,40272.0,40271.0,3.3526955]
[1610210308348,0.12812615,40272.0,40271.0,3.3526955]
[1610210309349,0.20282615,40272.0,40271.0,3.3526955]
[1610210311052,0.12812615,40272.0,40271.0,3.3526955]
[1610210312153,0.20312615,40272.0,40271.0,3.3526955]
[1610210312756,0.12812615,40272.0,40271.0,3.3526955]
[1610210313757,0.20282615,40272.0,40271.0,3.3526955]